bitfinex/quotes_BTCUSD_20250607
["timestamp","ask_amount","ask_price","bid_price","bid_amount"]
[1749329207094,0.0566079,105960.0,105950.0,0.72395937]
[1749329208302,0.06604515,105960.0,105950.0,0.72395937]
[1749329208511,0.06604502,105960.0,105950.0,0.72395937]
[1749329208709,0.06604501,105960.0,105950.0,0.72395937]
[1749329209662,0.06604459,105960.0,105950.0,0.72395937]
[1749329210276,0.04834492,105960.0,105950.0,0.72395937]
[1749329210486,0.06604459,105960.0,105950.0,0.39414575]
[1749329210722,0.59738464,105960.0,105950.0,0.492]
[1749329211146,0.59738464,105960.0,105950.0,0.372]
[1749329211789,0.59738562,105960.0,105950.0,0.372]
[1749329212014,0.59738562,105960.0,105950.0,0.38143841]
[1749329212219,0.59738564,105960.0,105950.0,0.38143841]
[1749329212867,0.59738564,105960.0,105950.0,0.5985212]
[1749329213068,0.59738053,105960.0,105950.0,0.59852138]
[1749329213274,0.59738025,105960.0,105950.0,0.59852138]
[1749329213472,0.59738025,105960.0,105950.0,0.60795943]
[1749329213673,0.59738022,105960.0,105950.0,0.60795943]
[1749329213908,0.57968497,105960.0,105950.0,0.60795943]
[1749329214113,0.5973802,105960.0,105950.0,0.60795943]
[1749329214502,0.57968497,105960.0,105950.0,0.60795943]
[1749329215212,0.57024781,105960.0,105950.0,0.59852138]
[1749329216047,0.57024781,105960.0,105950.0,0.60795943]
[1749329218147,0.57024781,105960.0,105950.0,0.60795898]
[1749329220383,0.57024781,105960.0,105950.0,0.60795853]
[1749329220798,0.55464781,105960.0,105950.0,0.60795853]
[1749329223588,0.55464781,105960.0,105950.0,0.59852066]
[1749329223785,0.57074781,105960.0,105950.0,0.59852066]
[1749329228020,0.55464781,105960.0,105950.0,0.59852066]
[1749329231216,0.57352231,105960.0,105950.0,0.60795853]
[1749329231410,0.58295983,105960.0,105950.0,0.60795853]
[1749329232917,0.39420936,105960.0,105950.0,0.60795809]
[1749329233125,0.58295983,105960.0,105950.0,0.60795809]
[1749329233325,0.38477184,105960.0,105950.0,0.60795809]
[1749329233533,0.36947122,105960.0,105950.0,0.62425809]
[1749329233740,0.36003388,105960.0,105950.0,0.62425809]
[1749329233946,0.34116,105960.0,105950.0,1.24192789]
[1749329234384,0.3505969,105960.0,105950.0,1.24192789]
[1749329234582,0.36003388,105960.0,105950.0,1.24192789]
[1749329234698,0.36003388,105960.0,105950.0,0.64025809]
[1749329236157,0.36947104,105960.0,105950.0,0.64025809]
[1749329237238,0.36003388,105960.0,105950.0,0.64025809]
[1749329237609,0.36947113,105960.0,105950.0,0.62425809]
[1749329237807,0.55822231,105960.0,105950.0,0.30114669]
[1749329237962,0.55822231,105960.0,105950.0,0.59594483]
[1749329238165,0.36947184,105960.0,105950.0,0.59594483]
[1749329239011,0.38716648,105960.0,105950.0,0.59594483]
[1749329239227,0.55822231,105960.0,105950.0,0.6053827]
[1749329239422,0.57591698,105960.0,105950.0,0.59594483]
[1749329240212,0.57591698,105960.0,105950.0,0.58650669]
[1749329240421,0.54878524,105960.0,105950.0,0.60538324]
[1749329240620,0.56648139,105960.0,105950.0,0.60538324]
[1749329241289,0.5570445,105960.0,105950.0,0.60538324]
[1749329241643,0.53934799,105960.0,105950.0,0.60538324]
[1749329241853,0.55704501,105960.0,105950.0,0.60538324]
[1749329242579,0.55704478,105960.0,105950.0,0.60538324]
[1749329242777,0.53934799,105960.0,105950.0,0.60538324]
[1749329242930,0.54760726,105960.0,105950.0,0.39773841]
[1749329243137,0.54760726,105960.0,105950.0,0.59594501]
[1749329243343,0.54760726,105960.0,105950.0,0.60538324]
[1749329243985,0.54760726,105960.0,105950.0,0.59594501]
[1749329244323,0.54760728,105960.0,105950.0,0.59594501]
[1749329244533,0.52991047,105960.0,105950.0,0.59594501]
[1749329244734,0.52991047,105960.0,105950.0,0.58650669]
[1749329244940,0.52991047,105960.0,105950.0,0.10294]
[1749329245197,0.54760747,105960.0,105950.0,0.58650669]
[1749329245491,0.54760747,105960.0,105950.0,0.39773841]
[1749329245799,0.54760747,105960.0,105950.0,0.58650669]
[1749329245947,0.54760768,105960.0,105950.0,0.58650669]
[1749329249017,0.54760768,105960.0,105950.0,0.39773841]
[1749329249214,0.54760768,105960.0,105950.0,0.3883]
[1749329250025,0.52991047,105960.0,105950.0,0.3883]
[1749329250476,0.54760807,105960.0,105950.0,0.3883]
[1749329251288,0.52991047,105960.0,105950.0,0.3883]
[1749329251496,0.54760807,105960.0,105950.0,0.3883]
[1749329251860,0.54760806,105960.0,105950.0,0.3883]
[1749329252128,0.52991047,105960.0,105950.0,0.3883]
[1749329252556,0.54760777,105960.0,105950.0,0.3883]
[1749329252895,0.54760777,105960.0,105950.0,0.39773841]
[1749329253100,0.54760826,105960.0,105950.0,0.3883]
[1749329253505,0.52991047,105960.0,105950.0,0.3883]
[1749329254007,0.54760827,105960.0,105950.0,0.3883]
[1749329254417,0.54760827,105960.0,105950.0,0.39773841]
[1749329255255,0.54760827,105960.0,105950.0,0.59594501]
[1749329255410,0.5476087,105960.0,105950.0,0.59594501]
[1749329255810,0.54760847,105960.0,105950.0,0.59594501]
[1749329256266,0.52991047,105960.0,105950.0,0.59594501]
[1749329256441,0.54760847,105960.0,105950.0,0.59594501]
[1749329256655,0.54760847,105960.0,105950.0,0.60538324]
[1749329257052,0.52991047,105960.0,105950.0,0.372]
[1749329257249,0.56320889,105960.0,105950.0,0.57020669]
[1749329257630,0.54551047,105960.0,105950.0,0.57020669]
[1749329257835,0.56320891,105960.0,105950.0,0.57020669]
[1749329259035,0.56320913,105960.0,105950.0,0.57020669]
[1749329259740,0.56320912,105960.0,105950.0,0.57020669]
[1749329260344,0.56320911,105960.0,105950.0,0.57964501]
[1749329260546,0.54551047,105960.0,105950.0,0.57964501]
[1749329260766,0.56320877,105960.0,105950.0,0.57964501]
[1749329260968,0.56320882,105960.0,105950.0,0.57964501]
[1749329261213,0.5476088,105960.0,105950.0,0.58908324]
[1749329261412,0.54760921,105960.0,105950.0,0.58908324]
[1749329262326,0.54760922,105960.0,105950.0,0.58908324]
[1749329262715,0.54760921,105960.0,105950.0,0.58908324]
[1749329262900,0.52991047,105960.0,105950.0,0.58908324]
[1749329263098,0.55704662,105960.0,105950.0,0.59852138]
[1749329264196,0.55704707,105960.0,105950.0,0.61362138]
[1749329264623,0.56648431,105960.0,105950.0,0.62305934]
[1749329265027,0.56648426,105960.0,105950.0,0.62305934]
[1749329266221,0.54878524,105960.0,105950.0,0.62305934]
[1749329266576,0.56648691,105960.0,105950.0,0.62305934]
[1749329266781,0.56649212,105960.0,105950.0,0.62305934]
[1749329268056,0.56649213,105960.0,105950.0,0.62305934]
[1749329268274,0.54878524,105960.0,105950.0,0.62305934]
[1749329268477,0.56649213,105960.0,105950.0,0.62305934]
[1749329268698,0.54878524,105960.0,105950.0,0.62305934]
[1749329268902,0.56649212,105960.0,105950.0,0.62305934]
[1749329269293,0.54878524,105960.0,105950.0,0.62305934]
[1749329269525,0.56649213,105960.0,105950.0,0.62305934]
[1749329270069,0.54878524,105960.0,105950.0,0.62305934]
[1749329270724,0.56649243,105960.0,105950.0,0.62305934]
[1749329270883,0.56649243,105960.0,105950.0,0.25105934]
[1749329271097,0.56649243,105960.0,105950.0,0.62301934]
[1749329272592,0.54878524,105960.0,105950.0,0.62301934]
[1749329272739,0.5664926,105960.0,105950.0,0.62301934]
[1749329274122,0.54878524,105960.0,105950.0,0.62301934]
[1749329274339,0.56649254,105960.0,105950.0,0.62301934]
[1749329274735,0.56636142,105960.0,105950.0,0.62301934]
[1749329275612,0.54865412,105960.0,105950.0,0.62301934]
[1749329275813,0.56636138,105960.0,105950.0,0.62301934]
[1749329276220,0.35990311,105960.0,105950.0,0.62301872]
[1749329276444,0.39648443,105960.0,105950.0,0.63811872]
[1749329276867,0.40592186,105960.0,105950.0,0.63811872]
[1749329277827,0.40592185,105960.0,105950.0,0.63811872]
[1749329278379,0.39648442,105960.0,105950.0,0.63811872]
[1749329278992,0.38704699,105960.0,105950.0,0.63811872]
[1749329279197,0.38704637,105960.0,105950.0,0.63811872]
[1749329279402,0.39648371,105960.0,105950.0,0.63811872]
[1749329279612,0.39648375,105960.0,105950.0,0.63811872]
[1749329280150,0.38704641,105960.0,105950.0,0.62301872]
[1749329280358,0.39648375,105960.0,105950.0,0.62301872]
[1749329281149,0.39648163,105960.0,105950.0,0.62301872]
[1749329281358,0.37877708,105960.0,105950.0,0.63801872]
[1749329281481,0.39648163,105960.0,105950.0,0.63801872]
[1749329281681,0.37877708,105960.0,105950.0,0.63801872]
[1749329282152,0.39648163,105960.0,105950.0,0.63801872]
[1749329282606,0.38704429,105960.0,105950.0,0.63801872]
[1749329283160,0.39648154,105960.0,105950.0,0.63801872]
[1749329283493,0.39648031,105960.0,105950.0,0.63801872]
[1749329283956,0.38704297,105960.0,105950.0,0.63801872]
[1749329284168,0.39648022,105960.0,105950.0,0.63801872]
[1749329284479,0.37877681,105960.0,105950.0,0.63801872]
[1749329284682,0.40591746,105960.0,105950.0,0.62301872]
[1749329284942,0.37877681,105960.0,105950.0,0.62301872]
[1749329285145,0.38821415,105960.0,105950.0,0.62301872]
[1749329285346,0.40591664,105960.0,105950.0,0.62301872]
[1749329286295,0.3964793,105960.0,105950.0,0.62301872]
[1749329286469,0.40591664,105960.0,105950.0,0.62301872]
[1749329286864,0.38821415,105960.0,105950.0,0.62301872]
[1749329287004,0.40591663,105960.0,105950.0,0.62301872]
[1749329288292,0.40591613,105960.0,105950.0,0.62301872]
[1749329288472,0.40591621,105960.0,105950.0,0.62301872]
[1749329288674,0.40591623,105960.0,105950.0,0.62301872]
[1749329289473,0.40591599,105960.0,105950.0,0.62301872]
[1749329289927,0.4059167,105960.0,105950.0,0.62301872]
[1749329290134,0.39647927,105960.0,105950.0,0.62301872]
[1749329290311,0.4059169,105960.0,105950.0,0.62301872]
[1749329290750,0.38821486,105960.0,105950.0,0.62301872]
[1749329290952,0.4059169,105960.0,105950.0,0.62301872]
[1749329291761,0.38821486,105960.0,105950.0,0.62301872]
[1749329291892,0.40591677,105960.0,105950.0,0.62301872]
[1749329292313,0.40591731,105960.0,105950.0,0.62301872]
[1749329292674,0.3882154,105960.0,105950.0,0.62301872]
[1749329292876,0.40591732,105960.0,105950.0,0.62301872]
[1749329293484,0.3882154,105960.0,105950.0,0.62301872]
[1749329293893,0.40591728,105960.0,105950.0,0.62301872]
[1749329294252,0.40591726,105960.0,105950.0,0.62301872]
[1749329295184,0.40591727,105960.0,105950.0,0.62301872]
[1749329295394,0.3882154,105960.0,105950.0,0.62301872]
[1749329295532,0.40591727,105960.0,105950.0,0.62301872]
[1749329295730,0.3882154,105960.0,105950.0,0.62301872]
[1749329296202,0.40591733,105960.0,105950.0,0.62301872]
[1749329296945,0.4059174,105960.0,105950.0,0.62301872]
[1749329297358,0.3882154,105960.0,105950.0,0.62301872]
[1749329297886,0.59466801,105960.0,105950.0,0.62301872]
[1749329299064,0.38704259,105960.0,105950.0,0.62301872]
[1749329299367,0.38704272,105960.0,105950.0,0.62301872]
[1749329299574,0.36934045,105960.0,105950.0,0.62301872]
[1749329299922,0.38704296,105960.0,105950.0,0.62301872]
[1749329300286,0.34102888,105960.0,105950.0,0.62301872]
[1749329300485,0.36816821,105960.0,105950.0,0.63931872]
[1749329300685,0.37760519,105960.0,105950.0,0.63931872]
[1749329300848,0.37760465,105960.0,105950.0,0.63931872]
[1749329301058,0.38704172,105960.0,105950.0,0.63931872]
[1749329301261,0.37760465,105960.0,105950.0,0.63931872]
[1749329301455,0.35990258,105960.0,105950.0,0.63931872]
[1749329301660,0.3599025,105960.0,105950.0,0.63931872]
[1749329301838,0.37760457,105960.0,105950.0,0.63931872]
[1749329302047,0.38704164,105960.0,105950.0,0.63931872]
[1749329302541,0.36933957,105960.0,105950.0,0.63931872]
[1749329302948,0.38704075,105960.0,105950.0,0.63931872]
[1749329303078,0.36933957,105960.0,105950.0,0.63931872]
[1749329303514,0.37760427,105960.0,105950.0,0.63931872]
[1749329303690,0.38704134,105960.0,105950.0,0.63931872]
[1749329304448,0.38704125,105960.0,105950.0,0.63931872]
[1749329304868,0.36933948,105960.0,105950.0,0.63931872]
[1749329305070,0.38704125,105960.0,105950.0,0.63931872]
[1749329305272,0.37760427,105960.0,105950.0,0.63931872]
[1749329305493,0.38704125,105960.0,105950.0,0.63931872]
[1749329305664,0.36816739,105960.0,105950.0,0.63931872]
[1749329305827,0.37760437,105960.0,105950.0,0.63931872]
[1749329306036,0.37760435,105960.0,105950.0,1.24098852]
[1749329306247,0.35990258,105960.0,105950.0,1.24098852]
[1749329306635,0.37760435,105960.0,105950.0,1.24098852]
[1749329307424,0.37760374,105960.0,105950.0,1.24098852]
[1749329307651,0.36816676,105960.0,105950.0,1.24098852]
[1749329307891,0.37760374,105960.0,105950.0,0.63931872]
[1749329308133,0.35990258,105960.0,105950.0,0.63931872]
[1749329308373,0.37760374,105960.0,105950.0,0.63931872]
[1749329309055,0.37760444,105960.0,105950.0,0.63931872]
[1749329309701,0.35990258,105960.0,105950.0,0.63931872]
[1749329309908,0.37760444,105960.0,105950.0,0.63931872]
[1749329310309,0.38704151,105960.0,105950.0,0.63931872]
[1749329311302,0.36933965,105960.0,105950.0,0.63931872]
[1749329311512,0.38704119,105960.0,105950.0,0.63931872]
[1749329312242,0.38704119,105960.0,105950.0,0.62301872]
[1749329312460,0.3870411,105960.0,105950.0,0.62301872]
[1749329312761,0.38704104,105960.0,105950.0,0.62301872]
[1749329312961,0.36933965,105960.0,105950.0,0.62301872]
[1749329313540,0.39647821,105960.0,105950.0,0.62301872]
[1749329313888,0.39647821,105960.0,105950.0,0.25105872]
[1749329314031,0.3964782,105960.0,105950.0,0.62297872]
[1749329314660,0.39647812,105960.0,105950.0,0.62297872]
[1749329315223,0.37877681,105960.0,105950.0,0.62297872]
[1749329315364,0.39647814,105960.0,105950.0,0.62297872]
[1749329316771,0.37877681,105960.0,105950.0,0.62297872]
[1749329316911,0.39647814,105960.0,105950.0,0.62297872]
[1749329317244,0.38704098,105960.0,105950.0,0.62297872]
[1749329318066,0.39647819,105960.0,105950.0,0.62297872]
[1749329318265,0.39647818,105960.0,105950.0,0.62297872]
[1749329318463,0.37877681,105960.0,105950.0,0.62297872]
[1749329318633,0.39647818,105960.0,105950.0,0.62297872]
[1749329319242,0.39647827,105960.0,105950.0,0.62297872]
[1749329319646,0.39647828,105960.0,105950.0,0.62297872]
[1749329320952,0.39647839,105960.0,105950.0,0.62297872]
[1749329321075,0.37877681,105960.0,105950.0,0.62297872]
[1749329321286,0.3964786,105960.0,105950.0,0.62297872]
[1749329322184,0.39647876,105960.0,105950.0,0.62297872]
[1749329322510,0.39647875,105960.0,105950.0,0.62297872]
[1749329322596,0.39647876,105960.0,105950.0,0.62297872]
[1749329324394,0.39647916,105960.0,105950.0,0.62297872]
[1749329325497,0.37877681,105960.0,105950.0,0.62297872]
[1749329325731,0.39647934,105960.0,105950.0,0.62297872]
[1749329325938,0.37877681,105960.0,105950.0,0.62297872]
[1749329326138,0.39647934,105960.0,105950.0,0.62297872]
[1749329327335,0.37877681,105960.0,105950.0,0.62297872]
[1749329327460,0.39648022,105960.0,105950.0,0.62297872]
[1749329327660,0.37881681,105960.0,105950.0,0.62297872]
[1749329327935,0.39652022,105960.0,105950.0,0.62297872]
[1749329328065,0.39652142,105960.0,105950.0,0.62297872]
[1749329329484,0.37881681,105960.0,105950.0,0.62297872]
[1749329329682,0.39652142,105960.0,105950.0,0.62297872]
[1749329330624,0.38708426,105960.0,105950.0,0.62297872]
[1749329330910,0.36937965,105960.0,105950.0,0.62297872]
[1749329331149,0.38708775,105960.0,105950.0,0.62297872]
[1749329331688,0.38708776,105960.0,105950.0,0.62297872]
[1749329332552,0.38708775,105960.0,105950.0,0.62297872]
[1749329332736,0.36937965,105960.0,105950.0,0.62297872]
[1749329333289,0.38708775,105960.0,105950.0,0.62297872]
[1749329333648,0.39652491,105960.0,105950.0,0.62297872]
[1749329334274,0.37765068,105960.0,105950.0,0.63957872]
[1749329334682,0.37765068,105960.0,105950.0,1.24124852]
[1749329335823,0.35994258,105960.0,105950.0,1.24124852]
[1749329336041,0.3682137,105960.0,105950.0,1.24124852]
[1749329336245,0.38708749,105960.0,105950.0,1.24124852]
[1749329336454,0.35877698,105960.0,105950.0,1.28410408]
[1749329336665,0.02077593,105960.0,105950.0,1.98217336]
[1749329336862,0.00306888,105960.0,105950.0,2.04811763]
[1749329337065,0.00306888,105960.0,105950.0,2.01041404]
[1749329337699,0.00106888,105960.0,105950.0,2.04812215]
[1749329339725,0.00106888,105960.0,105950.0,2.04912215]
[1749329340331,0.00106888,105960.0,105950.0,2.16912215]
[1749329343113,0.00106888,105960.0,105950.0,2.13141404]
[1749329343738,0.00106888,105960.0,105950.0,2.47141404]
[1749329344183,0.00106888,105960.0,105950.0,2.48907104]
[1749329346655,0.00106888,105960.0,105950.0,3.18907104]
[1749329347608,0.00106888,105960.0,105950.0,3.88907104]
[1749329348240,0.00106888,105960.0,105950.0,3.18907104]
[1749329349690,4e-05,105980.0,105950.0,3.18907104]
[1749329349691,4e-05,105980.0,105970.0,0.24844147]
[1749329349885,4e-05,105980.0,105970.0,2.16478055]
[1749329350086,4e-05,105980.0,105970.0,2.19296656]
[1749329350455,4e-05,105980.0,105970.0,2.26226741]
[1749329350667,4e-05,105980.0,105970.0,2.61345814]
[1749329350846,4e-05,105980.0,105970.0,2.64180614]
[1749329351436,0.00104,105980.0,105970.0,2.64180614]
[1749329351859,4e-05,105980.0,105970.0,2.64180614]
[1749329352082,4e-05,105980.0,105970.0,2.67031434]
[1749329352332,0.00204,105980.0,105970.0,2.94227434]
[1749329352544,0.00204,105980.0,105970.0,3.54394414]
[1749329352744,0.00204,105980.0,105970.0,3.4498074]
[1749329352987,4e-05,105980.0,105970.0,3.4498074]
[1749329353280,4e-05,105980.0,105970.0,4.1498074]
[1749329353460,4e-05,105980.0,105970.0,4.20605047]
[1749329353712,0.00104,105980.0,105970.0,4.20605047]
[1749329354326,0.00104,105980.0,105970.0,4.20905047]
[1749329354765,0.00104,105980.0,105970.0,4.21305047]
[1749329355172,4e-05,105980.0,105970.0,4.21305047]
[1749329355372,4e-05,105980.0,105970.0,4.21705047]
[1749329356463,8e-05,105980.0,105970.0,4.21705047]
[1749329358546,8e-05,105980.0,105970.0,4.51487047]
[1749329359900,8e-05,105980.0,105970.0,4.14315047]
[1749329360125,8e-05,105980.0,105970.0,3.91320067]
[1749329360394,8e-05,105980.0,105970.0,4.51487047]
[1749329361218,8e-05,105980.0,105970.0,4.14315047]
[1749329361343,8e-05,105980.0,105970.0,4.51487047]
[1749329362734,8e-05,105980.0,105970.0,3.62804067]
[1749329362963,8e-05,105980.0,105970.0,3.91320067]
[1749329363390,8e-05,105980.0,105970.0,3.33440952]
[1749329363613,8e-05,105980.0,105970.0,2.63440952]
[1749329363836,8e-05,105980.0,105970.0,3.25062017]
[1749329364114,8e-05,105980.0,105970.0,3.1943771]
[1749329364353,8e-05,105980.0,105970.0,3.1903771]
[1749329365011,8e-05,105980.0,105970.0,3.1906171]
[1749329365219,8e-05,105980.0,105970.0,2.58435858]
[1749329365434,8e-05,105980.0,105970.0,2.58735858]
[1749329365647,8e-05,105980.0,105970.0,2.64360165]
[1749329365857,8e-05,105980.0,105970.0,2.35820165]
[1749329366064,8e-05,105980.0,105970.0,2.64360165]
[1749329366279,8e-05,105980.0,105970.0,2.35820165]
[1749329366494,8e-05,105980.0,105970.0,3.34356165]
[1749329366966,8e-05,105980.0,105970.0,3.05820165]
[1749329367179,8e-05,105980.0,105970.0,3.34356165]
[1749329368598,8e-05,105980.0,105970.0,3.34352165]
[1749329369026,8e-05,105980.0,105970.0,3.05820165]
[1749329369244,8e-05,105980.0,105970.0,3.34352165]
[1749329369462,8e-05,105980.0,105970.0,3.05820165]
[1749329369681,8e-05,105980.0,105970.0,3.32734165]
[1749329369907,8e-05,105980.0,105970.0,3.32743143]
[1749329370116,8e-05,105980.0,105970.0,2.95547143]
[1749329370337,8e-05,105980.0,105970.0,3.02969143]
[1749329373397,0.01578,105980.0,105970.0,2.25781523]
[1749329374082,0.01578,105980.0,105970.0,2.20157216]
[1749329374507,0.01578,105980.0,105970.0,2.25781523]
[1749329374933,0.01578,105980.0,105970.0,2.20157216]
[1749329375573,0.01578,105980.0,105970.0,2.25781523]
[1749329376022,0.01578,105980.0,105970.0,2.20157216]
[1749329376222,8e-05,105980.0,105970.0,2.20157216]
[1749329376424,8e-05,105980.0,105970.0,2.21747216]
[1749329376635,8e-05,105980.0,105970.0,2.27371523]
[1749329379726,8e-05,105980.0,105970.0,2.23616595]
[1749329385143,8e-05,105980.0,105970.0,2.26416693]
[1749329387270,8e-05,105980.0,105970.0,2.26422031]
[1749329391717,8e-05,105980.0,105970.0,1.99226031]
[1749329392428,8e-05,105980.0,105970.0,1.93601724]
[1749329396407,8e-05,105980.0,105970.0,2.01130179]
[1749329397459,8e-05,105980.0,105970.0,1.65155279]
[1749329397663,8e-05,105980.0,105970.0,2.02343279]
[1749329401245,8e-05,105980.0,105970.0,2.03943279]
[1749329401420,8e-05,105980.0,105970.0,2.02343279]
[1749329402371,8e-05,105980.0,105970.0,2.14343279]
[1749329404245,0.01588,105980.0,105970.0,2.14343279]
[1749329405190,0.01588,105980.0,105970.0,2.11508179]
[1749329406519,0.01588,105980.0,105970.0,2.11500179]
[1749329406739,0.01588,105980.0,105970.0,2.03971724]
[1749329409885,0.01588,105980.0,105970.0,2.09628515]
[1749329417275,0.01588,105980.0,105970.0,2.11500179]
[1749329417480,0.01588,105980.0,105970.0,2.03971724]
[1749329418649,0.01588,105980.0,105970.0,2.09627383]
[1749329421928,0.01588,105980.0,105970.0,1.72447383]
[1749329422171,0.01588,105980.0,105970.0,2.09623383]
[1749329426534,0.01588,105980.0,105970.0,0.74079754]
[1749329426752,0.03178,105980.0,105970.0,1.03027151]
[1749329426967,0.03178,105980.0,105970.0,1.04481236]
[1749329427183,0.03178,105980.0,105970.0,1.64594682]
[1749329427627,0.03178,105980.0,105970.0,0.98825577]
[1749329427855,0.03178,105980.0,105970.0,1.01653291]
[1749329428075,0.04947419,105980.0,105970.0,1.01653291]
[1749329428505,0.03178,105980.0,105970.0,1.01653291]
[1749329430397,0.03178,105980.0,105970.0,1.24590737]
[1749329430604,0.03178,105980.0,105970.0,1.61762737]
[1749329432613,0.04121503,105980.0,105970.0,1.61762737]
[1749329432823,0.03178,105980.0,105970.0,1.61766737]
[1749329433714,0.03178,105980.0,105970.0,1.5799534]
[1749329434322,0.04121494,105980.0,105970.0,1.5799534]
[1749329434531,0.03178,105980.0,105970.0,1.5799534]
[1749329436158,0.03178,105980.0,105970.0,1.61766737]
[1749329436622,0.03178,105980.0,105970.0,1.5799534]
[1749329437617,0.03178,105980.0,105970.0,0.97881894]
[1749329437839,0.05065005,105980.0,105970.0,0.88241946]
[1749329438033,0.03178,105980.0,105970.0,1.48355392]
[1749329438451,0.03178,105980.0,105970.0,0.88241946]
[1749329438828,0.03178,105980.0,105970.0,0.87941946]
[1749329439237,0.03178,105980.0,105970.0,0.87741946]
[1749329439389,0.03178,105980.0,105970.0,0.87841946]
[1749329440082,0.04121494,105980.0,105970.0,0.87841946]
[1749329440566,0.03178,105980.0,105970.0,0.87841946]
[1749329441415,0.03178,105980.0,105970.0,1.47955392]
[1749329447476,0.03178,105980.0,105970.0,0.87841946]
[1749329449344,8e-05,105980.0,105970.0,1.49585392]
[1749329449549,8e-05,105980.0,105970.0,1.46757678]
[1749329450212,8e-05,105980.0,105970.0,1.56397626]
[1749329450652,8e-05,105980.0,105970.0,1.59223033]
[1749329454413,8e-05,105980.0,105970.0,1.56397626]
[1749329454629,8e-05,105980.0,105970.0,1.58037626]
[1749329456897,8e-05,105980.0,105970.0,1.67460495]
[1749329466739,8e-05,105980.0,105970.0,1.63693285]
[1749329467394,8e-05,105980.0,105970.0,1.67460513]
[1749329474599,8e-05,105980.0,105970.0,2.27573959]
[1749329474811,8e-05,105980.0,105970.0,2.23806731]
[1749329475026,8e-05,105980.0,105970.0,1.63693285]
[1749329475240,8e-05,105980.0,105970.0,2.23806731]
[1749329475637,8e-05,105980.0,105970.0,1.66561549]
[1749329480416,8e-05,105980.0,105970.0,1.6090589]
[1749329481050,8e-05,105980.0,105970.0,1.66558787]
[1749329481262,8e-05,105980.0,105970.0,1.98152341]
[1749329481473,8e-05,105980.0,105970.0,2.26668341]
[1749329481933,8e-05,105980.0,105970.0,2.21015336]
[1749329483438,8e-05,105980.0,105970.0,3.32543791]
[1749329484327,8e-05,105980.0,105970.0,3.35378491]
[1749329484745,8e-05,105980.0,105970.0,3.06862491]
[1749329484954,8e-05,105980.0,105970.0,3.35378491]
[1749329485167,8e-05,105980.0,105970.0,3.35278491]
[1749329485384,8e-05,105980.0,105970.0,3.35378491]
[1749329485604,8e-05,105980.0,105970.0,3.35578491]
[1749329490815,8e-05,105980.0,105970.0,3.62770491]
[1749329491653,8e-05,105980.0,105970.0,3.22560491]
[1749329494332,8e-05,105980.0,105970.0,3.22556491]
[1749329494961,8e-05,105980.0,105970.0,2.94044491]
[1749329495174,8e-05,105980.0,105970.0,3.22556491]
[1749329495808,8e-05,105980.0,105970.0,3.92556491]
[1749329496007,8e-05,105980.0,105970.0,3.64044491]
[1749329496235,8e-05,105980.0,105970.0,3.92556491]
[1749329497241,8e-05,105980.0,105970.0,3.64044491]
[1749329497446,8e-05,105980.0,105970.0,3.92556491]
[1749329498065,8e-05,105980.0,105970.0,3.64044491]
[1749329498479,8e-05,105980.0,105970.0,3.92556491]
[1749329501325,8e-05,105980.0,105970.0,3.64044491]
[1749329501530,8e-05,105980.0,105970.0,3.92556491]
[1749329503559,8e-05,105980.0,105970.0,3.64044491]
[1749329504173,8e-05,105980.0,105970.0,3.92556491]
[1749329511273,8e-05,105980.0,105970.0,3.22556491]
[1749329513193,8e-05,105980.0,105970.0,2.94044491]
[1749329513397,8e-05,105980.0,105970.0,3.22556491]
[1749329514023,8e-05,105980.0,105970.0,3.92556491]
[1749329514239,8e-05,105980.0,105970.0,3.64044491]
[1749329514529,8e-05,105980.0,105970.0,3.92556491]
[1749329517593,8e-05,105980.0,105970.0,3.64044491]
[1749329517801,8e-05,105980.0,105970.0,3.92556491]
[1749329518210,8e-05,105980.0,105970.0,3.64044491]
[1749329518415,8e-05,105980.0,105970.0,3.92556491]
[1749329524369,8e-05,105980.0,105970.0,3.22556491]
[1749329525225,8e-05,105980.0,105970.0,3.20916491]
[1749329525438,8e-05,105980.0,105970.0,2.83748491]
[1749329525654,8e-05,105980.0,105970.0,3.20908491]
[1749329526731,8e-05,105980.0,105970.0,2.92400491]
[1749329526936,8e-05,105980.0,105970.0,3.20908491]
[1749329528703,8e-05,105980.0,105970.0,3.90908491]
[1749329535077,0.03288,105980.0,105970.0,2.31891599]
[1749329535321,0.03288,105980.0,105970.0,2.30813045]
[1749329535553,0.03288,105980.0,105970.0,1.56014095]
[1749329535760,0.03288,105980.0,105970.0,2.62719713]
[1749329535941,0.03288,105980.0,105970.0,2.64173798]
[1749329536188,0.03288,105980.0,105970.0,1.94173798]
[1749329536836,0.03288,105980.0,105970.0,1.90400778]
[1749329537281,0.03288,105980.0,105970.0,1.94171004]
[1749329539082,0.03288,105980.0,105970.0,1.64381004]
[1749329539887,0.03288,105980.0,105970.0,0.75759558]
[1749329540087,0.03288,105980.0,105970.0,0.98608406]
[1749329540301,0.03288,105980.0,105970.0,1.58721852]
[1749329542174,0.03288,105980.0,105970.0,1.54951626]
[1749329542759,0.03288,105980.0,105970.0,1.58521852]
[1749329542976,0.03288,105980.0,105970.0,1.58421852]
[1749329543192,0.03288,105980.0,105970.0,1.58521852]
[1749329544388,0.03288,105980.0,105970.0,1.54751626]
[1749329544610,0.03288,105980.0,105970.0,1.26243626]
[1749329544928,0.03288,105980.0,105970.0,1.54751626]
[1749329545292,0.03288,105980.0,105970.0,1.26243626]
[1749329545505,0.03288,105980.0,105970.0,1.54751626]
[1749329545705,0.03288,105980.0,105970.0,1.26243626]
[1749329545916,0.03288,105980.0,105970.0,1.54751626]
[1749329546369,0.03288,105980.0,105970.0,1.26243626]
[1749329546508,0.03288,105980.0,105970.0,1.54751626]
[1749329551809,0.03288,105980.0,105970.0,1.26243626]
[1749329552021,0.03288,105980.0,105970.0,1.54755626]
[1749329556640,0.03288,105980.0,105970.0,1.58525852]
[1749329559020,0.01658,105980.0,105970.0,1.58525852]
[1749329559622,0.03188,105980.0,105970.0,1.58525852]
[1749329560342,0.01658,105980.0,105970.0,1.58525852]
[1749329560950,0.03188,105980.0,105970.0,1.58525852]
[1749329562291,0.01658,105980.0,105970.0,1.58525852]
[1749329562726,8e-05,105980.0,105970.0,1.60175852]
[1749329562880,8e-05,105980.0,105970.0,1.65835004]
[1749329570662,8e-05,105980.0,105970.0,1.62064778]
[1749329583041,8e-05,105980.0,105970.0,1.64899978]
[1749329588275,0.03248,105980.0,105970.0,0.64518447]
[1749329588475,0.0502118,105980.0,105970.0,0.87313198]
[1749329588657,0.0502118,105980.0,105970.0,0.56917971]
[1749329588658,0.05964817,105980.0,105970.0,0.56917971]
[1749329588901,0.05964808,105980.0,105970.0,0.88256816]
[1749329589107,0.0596499,105980.0,105970.0,0.8593785]
[1749329589311,0.05021496,105980.0,105970.0,0.8593785]